fUST/lending_fUST_20260107
["ID","MTS","AMOUNT","RATE_DAILY","PERIOD"]
[400619095,1767747051587,-225.213,0.00036085,2]
[400619097,1767747051597,-1644.31763264,0.00036088,2]
[400619099,1767747051606,-152.72,0.00036118,60]
[400619101,1767747051615,-1582.57,0.00036162,60]
[400619103,1767747051628,-390.0,0.00036164,5]
[400619105,1767747051637,-2000.0,0.0003618,7]
[400619106,1767747051646,-1644.31763264,0.00036188,2]
[400619108,1767747051655,-205.01874135,0.0003621,2]
[400619110,1767747051665,-152.72,0.00036218,60]
[400619112,1767747051675,-1365.0,0.00036218,2]
[400619114,1767747051683,-628.0,0.00036218,2]
[400619116,1767747051693,-2145.0,0.00036218,2]
[400619118,1767747051705,-266.65624716,0.0003624,2]
[400619120,1767747051714,-1582.57,0.00036262,60]
[400619122,1767747051723,-1644.31763264,0.00036288,2]
[400619124,1767747051732,-449.0,0.000363,2]
[400619126,1767747051742,-500.0,0.00036302,13]
[400619128,1767747051751,-152.72,0.00036318,60]
[400619130,1767747051760,-2296.83091399,0.00036332,2]
[400619131,1767747051769,-600.0,0.00036332,2]
[400619133,1767747051779,-1582.57,0.00036362,60]
[400619135,1767747051787,-1644.31763264,0.00036388,2]
[400619137,1767747051796,-151.0,0.00036388,31]
[400619139,1767747051805,-152.72,0.00036418,60]
[400619141,1767747051814,-689.26,0.00036438,40]
[400619143,1767747051824,-512.07627404,0.0003645,30]
[400619145,1767747051832,-500.0,0.0003645,30]
[400619146,1767747051842,-500.0,0.0003645,30]
[400619148,1767747051851,-500.0,0.0003645,30]
[400619150,1767747051861,-500.0,0.0003645,30]
[400619152,1767747051869,-500.0,0.0003645,30]
[400619154,1767747051879,-500.0,0.0003645,30]
[400619156,1767747051887,-500.0,0.0003645,30]
[400619157,1767747051896,-500.0,0.0003645,30]
[400619159,1767747051905,-500.0,0.0003645,30]
[400619161,1767747051916,-500.0,0.0003645,30]
[400619163,1767747051925,-1582.57,0.00036462,60]
[400619165,1767747051934,-151.0,0.00036462,31]
[400619167,1767747051943,-151.0,0.00036462,31]
[400619169,1767747051952,-151.0,0.00036462,31]
[400619171,1767747051961,-151.0,0.00036462,31]
[400619173,1767747051970,-376.8200359,0.00036466,30]
[400619175,1767747051979,-376.8200359,0.00036466,30]
[400619176,1767747051989,-376.8200359,0.00036466,30]
[400619178,1767747051998,-376.8200359,0.00036466,30]
[400619180,1767747052007,-376.8200359,0.00036466,30]
[400619182,1767747052016,-376.8200359,0.00036466,30]
[400619184,1767747052025,-500.0,0.00036467,13]
[400619186,1767747052034,-1644.31763264,0.00036488,2]
[400619188,1767747052043,-240.2153094,0.000365,120]
[400619189,1767747052053,-152.81519316,0.00036518,60]
[400619191,1767747052062,-1582.57,0.00036562,60]
[400619193,1767747052071,-513.15686286,0.00036572,120]
[400619195,1767747052080,-1644.31763264,0.00036588,2]
[400619197,1767747052089,-151.0,0.00036588,31]
[400619199,1767747052099,-151.0,0.00036588,31]
[400619201,1767747052110,-151.0,0.00036588,31]
[400619203,1767747052120,-151.0,0.00036588,31]
[400619204,1767747052131,-151.0,0.00036588,31]
[400619206,1767747052143,-151.0,0.00036588,31]
[400619218,1767747052152,-1000.0,0.0003659,30]
[400619220,1767747052256,-1000.0,0.0003659,30]
[400619222,1767747052265,-1000.0,0.0003659,30]
[400619224,1767747052275,-164960.83913601,0.0003663,4]
[400619225,1767747052284,-740.38982778,0.00036631,2]
[400619227,1767747052293,-1000.0,0.00036635,14]
[400619229,1767747052303,-1582.57,0.00036662,60]
[400619231,1767747052312,-151.0,0.00036662,31]
[400619233,1767747052322,-1644.31763264,0.00036688,2]
[400619235,1767747052331,-600.0,0.00036707,2]
[400619237,1767747052340,-1582.57,0.00036762,60]
[400619239,1767747052349,-200.0,0.00036782,120]
[400619241,1767747052358,-1644.31763264,0.00036788,2]
[400619243,1767747052369,-3843.95030772,0.00036805,3]
[400619245,1767747052378,-2000.0,0.00036817,7]
[400619247,1767747052389,-3789.85908236,0.0003686,2]
[400619249,1767747052398,-1582.57,0.00036862,60]
[400619251,1767747052407,-1644.31763264,0.00036888,2]
[400619253,1767747052417,-576909.14,0.00036962,5]
[400619254,1767747052426,-1582.57,0.00036962,60]
[400619256,1767747052436,-689.26,0.00036986,41]
[400619258,1767747052446,-1603.97,0.00036986,120]
[400619260,1767747052456,-450.0,0.00036986,5]
[400619262,1767747052466,-1644.31763263,0.00036988,2]
[400619264,1767747052476,-1111.41067997,0.00036999,120]
[400619266,1767747052486,-2044.1094831,0.00037,2]
[400619268,1767747052495,-1582.57,0.00037062,60]
[400619270,1767747052504,-151.0,0.00037066,31]
[400619272,1767747052514,-151.0,0.00037066,31]
[400619274,1767747052524,-151.0,0.00037066,31]
[400619275,1767747052536,-151.0,0.00037066,31]
[400619277,1767747052546,-151.0,0.00037066,31]
[400619279,1767747052555,-153.811128,0.00037066,31]
[400619281,1767747052564,-600.0,0.00037081,2]
[400619283,1767747052573,-1199.0805528,0.00037093,2]
[400619285,1767747052583,-800.0,0.00037121,7]
[400619287,1767747052593,-79527.45,0.00037134,17]
[400619289,1767747052602,-1582.57,0.00037162,60]
[400619291,1767747052611,-767.7842514,0.00037179,2]
[400619293,1767747052621,-151.0,0.00037234,31]
[400619294,1767747052637,-151.0,0.00037234,31]
[400619296,1767747052653,-151.0,0.00037234,31]
[400619298,1767747052664,-151.0,0.00037234,31]
[400619300,1767747052675,-151.0,0.00037234,7]
[400619302,1767747052686,-151.0,0.00037234,31]
[400619304,1767747052700,-349.869649,0.00037234,28]
[400619306,1767747052722,-349.869649,0.00037234,28]
[400619308,1767747052738,-151.0,0.00037234,31]
[400619310,1767747052748,-349.869649,0.00037234,28]
[400619312,1767747052758,-349.869649,0.00037234,28]
[400619314,1767747052767,-151.0,0.00037234,31]
[400619316,1767747052777,-151.0,0.00037234,31]
[400619318,1767747052787,-151.0,0.00037234,31]
[400619320,1767747052796,-151.0,0.00037234,31]
[400619322,1767747052806,-151.0,0.00037234,31]
[400619324,1767747052815,-193224.20236501,0.00037234,7]
[400619326,1767747052824,-722.5710955,0.0003724,7]
[400619328,1767747052833,-4504.444686,0.0003726,31]
[400619330,1767747052842,-4504.444686,0.0003726,31]
[400619332,1767747052851,-4504.444686,0.0003726,31]
[400619334,1767747052861,-4504.444686,0.0003726,31]
[400619335,1767747052870,-4504.444686,0.0003726,31]
[400619337,1767747052880,-4504.444686,0.0003726,31]
[400619339,1767747052888,-4504.444686,0.0003726,31]
[400619341,1767747052898,-4504.444686,0.0003726,31]
[400619343,1767747052907,-4504.444686,0.0003726,31]
[400619345,1767747052917,-386.01724878,0.0003726,31]
[400619350,1767747053024,-739.52045827,0.0003726,31]
[400619351,1767747053036,-3378.90697895,0.0003726,31]
[400619352,1767747053045,-4504.444686,0.0003726,31]
[400619353,1767747053054,-4504.444686,0.0003726,31]
[400619354,1767747053064,-413.4277887,0.0003726,30]
[400619355,1767747053072,-1201.3133038,0.0003726,30]
[400619356,1767747053082,-753.6400718,0.0003726,30]
[400619357,1767747053091,-155.6642443,0.0003726,30]
[400619358,1767747053099,-387.4247744,0.0003726,30]
[400619359,1767747053112,-1582.82957092,0.00037262,60]
[400619360,1767747053122,-152.80579,0.00037266,31]
[400619361,1767747053131,-151.0,0.00037266,31]
[400619362,1767747053140,-151.0,0.00037266,31]
[400619363,1767747053151,-151.0,0.00037266,31]
[400619364,1767747053160,-151.0,0.00037266,31]
[400619365,1767747053169,-151.0,0.00037266,31]
[400619366,1767747053178,-151.0,0.00037266,31]
[400619368,1767747053189,-151.0,0.00037266,31]
[400619370,1767747053198,-151.0,0.00037266,31]
[400619372,1767747053208,-151.0,0.00037266,31]
[400619374,1767747053217,-151.0,0.00037266,31]
[400619376,1767747053226,-151.0,0.00037266,31]
[400619378,1767747053235,-273.060074,0.00037266,31]
[400619380,1767747053244,-151.0,0.00037266,31]
[400619382,1767747053253,-151.0,0.00037266,31]
[400619384,1767747053262,-151.0,0.00037266,31]
[400619386,1767747053271,-151.0,0.00037266,31]
[400619388,1767747053280,-151.0,0.00037266,31]
[400619390,1767747053290,-151.0,0.00037266,31]
[400619392,1767747053300,-8711.6173148,0.00037333,2]
[400619394,1767747053310,-8773.09793167,0.00037334,2]
[400619396,1767747053320,-151.0,0.00037342,31]
[400619398,1767747053330,-151.0,0.00037342,31]
[400619400,1767747053340,-190.765907,0.00037342,31]
[400619402,1767747053350,-151.0,0.00037342,31]
[400619404,1767747053359,-151.0,0.00037342,31]
[400619406,1767747053369,-151.0,0.00037342,31]
[400619408,1767747053379,-151.0,0.00037342,31]
[400619410,1767747053389,-151.0,0.00037342,31]
[400619412,1767747053400,-151.0,0.00037342,31]
[400619414,1767747053410,-151.0,0.00037342,31]
[400619416,1767747053420,-151.0,0.00037342,31]
[400619418,1767747053430,-222.5556,0.00037342,31]
[400619420,1767747053439,-151.0,0.00037342,31]
[400619422,1767747053449,-151.0,0.00037342,31]
[400619424,1767747053458,-151.0,0.00037342,31]
[400619426,1767747053467,-151.0,0.00037342,31]
[400619428,1767747053477,-199.109575,0.00037342,31]
[400619430,1767747053486,-151.0,0.00037342,31]
[400619432,1767747053495,-151.0,0.00037342,31]
[400619434,1767747053505,-151.0,0.00037342,31]
[400619436,1767747053514,-151.0,0.00037342,31]
[400619438,1767747053523,-151.0,0.00037342,31]
[400619440,1767747053532,-151.0,0.00037342,31]
[400619442,1767747053541,-151.0,0.00037342,31]
[400619444,1767747053550,-151.0,0.00037342,31]
[400619446,1767747053560,-151.0,0.00037342,31]
[400619448,1767747053569,-245.766,0.00037349,48]
[400619450,1767747053578,-151.71239736,0.00037357,2]
[400619452,1767747053587,-151.71239736,0.00037357,2]
[400619454,1767747053597,-303.41720312,0.00037357,2]
[400619456,1767747053608,-160.0,0.00037376,5]
[400619458,1767747053618,-160.0,0.00037376,5]
[400619460,1767747053628,-376.8200359,0.00037425,30]
[400619462,1767747053637,-376.8200359,0.00037425,30]
[400619464,1767747053647,-376.8200359,0.00037425,30]
[400619466,1767747053656,-376.8200359,0.00037425,30]
[400619468,1767747053666,-376.8200359,0.00037425,30]
[400619470,1767747053675,-376.8200359,0.00037425,30]
[400619472,1767747053684,-376.8200359,0.00037425,30]
[400619474,1767747053693,-751.4706942,0.00037425,30]
[400619476,1767747053702,-888.0,0.0003743,30]
[400619478,1767747053712,-151.0,0.00037433,31]
[400619480,1767747053721,-151.0,0.00037433,31]
[400619482,1767747053730,-151.0,0.00037433,31]
[400619484,1767747053739,-151.0,0.00037433,31]
[400619486,1767747053748,-151.0,0.00037433,31]
[400619488,1767747053758,-151.0,0.00037433,31]
[400619490,1767747053767,-221.765393,0.00037433,31]
[400619492,1767747053776,-151.0,0.00037433,31]
[400619494,1767747053785,-222.545523,0.00037433,31]
[400619496,1767747053795,-151.0,0.00037433,31]
[400619498,1767747053804,-177.372841,0.00037433,31]
[400619500,1767747053813,-151.0,0.00037433,31]
[400619501,1767747053822,-245.598663,0.00037433,31]
[400619503,1767747053832,-245.598663,0.00037433,31]
[400619506,1767747053843,-245.598663,0.00037433,31]
[400619508,1767747053853,-245.598663,0.00037433,31]
[400619510,1767747053862,-245.598663,0.00037433,31]
[400619512,1767747053871,-245.598663,0.00037433,31]
[400619514,1767747053881,-245.598663,0.00037433,31]
[400619516,1767747053890,-245.598663,0.00037433,31]
[400619518,1767747053899,-245.598663,0.00037433,31]
[400619519,1767747053910,-245.598663,0.00037433,31]
[400619521,1767747053919,-245.598663,0.00037433,31]
[400619523,1767747053928,-245.598666,0.00037433,31]
[400619525,1767747053938,-597.414182,0.00037433,31]
[400619527,1767747053947,-597.414182,0.00037433,31]
[400619529,1767747053956,-597.414182,0.00037433,31]
[400619531,1767747053965,-597.414182,0.00037433,31]
[400619533,1767747053974,-597.414182,0.00037433,31]
[400619535,1767747053983,-597.414182,0.00037433,31]
[400619537,1767747053992,-597.414182,0.00037433,31]
[400619539,1767747054002,-597.414182,0.00037433,31]
[400619541,1767747054011,-597.414182,0.00037433,31]
[400619543,1767747054020,-597.414182,0.00037433,31]
[400619545,1767747054030,-597.414182,0.00037433,31]
[400619547,1767747054039,-597.414174,0.00037433,31]
[400619549,1767747054048,-500.0,0.00037433,31]
[400619551,1767747054057,-500.0,0.00037433,31]
[400619553,1767747054067,-500.0,0.00037433,31]
[400619555,1767747054076,-500.0,0.00037433,31]
[400619557,1767747054085,-500.0,0.00037433,31]
[400619559,1767747054094,-500.0,0.00037433,31]
[400619561,1767747054107,-500.0,0.00037433,31]
[400619563,1767747054116,-500.0,0.00037433,31]
[400619565,1767747054125,-500.0,0.00037433,31]
[400619567,1767747054135,-500.0,0.00037433,31]
[400619569,1767747054146,-500.0,0.00037433,31]
[400619571,1767747054155,-500.0,0.00037433,31]
[400619573,1767747054165,-151.0,0.00037433,31]
[400619575,1767747054174,-151.0,0.00037433,31]
[400619577,1767747054185,-151.0,0.00037433,31]
[400619579,1767747054195,-151.0,0.00037433,31]
[400619581,1767747054205,-151.0,0.00037433,31]
[400619583,1767747054215,-151.0,0.00037433,31]
[400619594,1767747054319,-151.0,0.00037433,31]
[400619596,1767747054329,-151.0,0.00037433,31]
[400619598,1767747054339,-279.238344,0.00037433,31]
[400619600,1767747054349,-251.132582,0.00037433,31]
[400619603,1767747054364,-251.132582,0.00037433,31]
[400619604,1767747054373,-251.132582,0.00037433,31]
[400619606,1767747054382,-251.132582,0.00037433,31]
[400619608,1767747054391,-251.132582,0.00037433,31]
[400619610,1767747054401,-251.132582,0.00037433,31]
[400619612,1767747054411,-251.132582,0.00037433,31]
[400619615,1767747054422,-251.132582,0.00037433,31]
[400619616,1767747054431,-251.132582,0.00037433,31]
[400619619,1767747054441,-251.132582,0.00037433,31]
[400619620,1767747054451,-251.132582,0.00037433,31]
[400619622,1767747054464,-251.132583,0.00037433,31]
[400619625,1767747054474,-260.227615,0.00037433,31]
[400619626,1767747054483,-260.227615,0.00037433,31]
[400619628,1767747054492,-260.227615,0.00037433,31]
[400619630,1767747054501,-260.227615,0.00037433,31]
[400619632,1767747054511,-260.227615,0.00037433,31]
[400619634,1767747054520,-260.227615,0.00037433,31]
[400619636,1767747054530,-151.0,0.00037433,31]
[400619638,1767747054539,-151.0,0.00037433,31]
[400619641,1767747054549,-260.227615,0.00037433,31]
[400619642,1767747054559,-4000.0,0.00037433,31]
[400619645,1767747054569,-151.0,0.00037433,31]
[400619646,1767747054578,-260.227615,0.00037433,31]
[400619649,1767747054587,-260.227607,0.00037433,31]
[400619651,1767747054597,-4000.0,0.00037433,31]
[400619653,1767747054606,-151.0,0.00037433,31]
[400619655,1767747054616,-151.0,0.00037433,31]
[400619656,1767747054625,-4000.0,0.00037433,31]
[400619659,1767747054635,-4000.0,0.00037433,31]
[400619661,1767747054645,-151.0,0.00037433,31]
[400619663,1767747054654,-151.0,0.00037433,31]
[400619665,1767747054664,-4000.0,0.00037433,31]
[400619667,1767747054674,-151.0,0.00037433,31]
[400619669,1767747054683,-4000.0,0.00037433,31]
[400619671,1767747054692,-151.0,0.00037433,31]
[400619673,1767747054702,-4000.0,0.00037433,31]
[400619675,1767747054711,-151.0,0.00037434,31]
[400619677,1767747054720,-277.118359,0.00037434,31]
[400619679,1767747054729,-151.0,0.00037434,31]
[400619681,1767747054738,-151.0,0.00037434,31]
[400619683,1767747054747,-151.0,0.00037434,31]
[400619685,1767747054756,-151.0,0.00037434,31]
[400619687,1767747054765,-205.527207,0.00037434,31]
[400619689,1767747054775,-220.862628,0.00037434,31]
[400619691,1767747054784,-151.0,0.00037434,7]
[400619693,1767747054793,-151.893811,0.00037434,7]
[400619695,1767747054802,-4504.444686,0.00037434,31]
[400619697,1767747054811,-4504.444686,0.00037434,31]
[400619699,1767747054822,-151.0,0.00037434,31]
[400619701,1767747054831,-151.0,0.00037434,31]
[400619703,1767747054841,-4504.444686,0.00037434,31]
[400619705,1767747054850,-4504.444686,0.00037434,31]
[400619707,1767747054860,-4504.444686,0.00037434,31]
[400619709,1767747054869,-4504.444686,0.00037434,31]
[400619711,1767747054878,-4504.444686,0.00037434,31]
[400619713,1767747054887,-349.869649,0.00037434,28]
[400619715,1767747054896,-4504.444683,0.00037434,31]
[400619717,1767747054906,-349.869649,0.00037434,28]
[400619719,1767747054916,-349.869649,0.00037434,28]
[400619721,1767747054926,-151.0,0.00037434,31]
[400619723,1767747054935,-349.869649,0.00037434,28]
[400619725,1767747054944,-264.296067,0.00037434,31]
[400619727,1767747054954,-349.869649,0.00037434,28]
[400619729,1767747054963,-349.869649,0.00037434,28]
[400619731,1767747054972,-349.869649,0.00037434,28]
[400619733,1767747054981,-349.869657,0.00037434,28]
[400619735,1767747054990,-151.0,0.00037434,31]
[400619737,1767747055000,-151.0,0.00037434,31]
[400619739,1767747055009,-151.0,0.00037434,31]
[400619741,1767747055018,-216.254292,0.00037434,31]
[400619743,1767747055027,-151.0,0.00037434,31]
[400619745,1767747055036,-151.0,0.00037434,31]
[400619747,1767747055046,-151.0,0.00037434,31]
[400619749,1767747055055,-151.0,0.00037434,31]
[400619751,1767747055064,-151.0,0.00037434,31]
[400619753,1767747055073,-151.0,0.00037434,31]
[400619754,1767747055082,-151.0,0.00037434,31]
[400619756,1767747055091,-214.232092,0.00037434,31]
[400619759,1767747055100,-26875.94403402,0.00037434,20]
[400619770,1767747055202,-4690.53115796,0.00032877,10]
[400619779,1767747055282,-67000.76884204,0.00032877,10]
[400619781,1767747055291,-500.0,0.00034521,30]
[400619783,1767747055300,-184.3704767,0.00034986,30]
[400619785,1767747055310,-603.09,0.00035068,30]
[400619787,1767747055320,-376.8200359,0.00036466,30]
[400619789,1767747055330,-360199.85382637,0.00037434,20]
[400619795,1767747055371,-1041.66666667,0.00031,30]
[400619797,1767747055380,-530.15558011,0.00037434,20]
[400619975,1767747077336,332.4,0.00030136,120]
[400619977,1767747096039,332.37,0.00030136,120]
[400619978,1767747101988,165.25459269,0.0001257,2]
[400619979,1767747102018,500.0,0.0001257,2]
[400619980,1767747102299,500.0,0.0001257,2]
[400619981,1767747102739,500.0,0.0001257,2]
[400619982,1767747103097,500.0,0.0001257,2]
[400619983,1767747103425,500.0,0.0001257,2]
[400619984,1767747103716,313.80386994,0.0001257,2]
[400619985,1767747103836,500.0,0.0001257,2]
[400619986,1767747104182,500.0,0.0001257,2]
[400619987,1767747104219,500.0,0.0001257,2]
[400619988,1767747104313,500.0,0.0001257,2]
[400619989,1767747104364,500.0,0.0001257,2]
[400619990,1767747104420,500.0,0.0001257,2]
[400619991,1767747104471,500.0,0.0001257,2]
[400619992,1767747104527,500.0,0.0001257,2]
[400619993,1767747104612,367.11948966,0.0001257,2]
[400619994,1767747104767,500.0,0.0001257,2]
[400619995,1767747104836,500.0,0.0001257,2]
[400619996,1767747104886,500.0,0.0001257,2]
[400619997,1767747104916,500.0,0.0001257,2]
[400619998,1767747104944,500.0,0.0001257,2]
[400619999,1767747104990,153.83204771,0.0001257,2]
[400620000,1767747123550,332.37,0.00030136,120]
[400620001,1767747141273,332.37,0.00030136,120]
[400620002,1767747157791,332.37,0.00030136,120]
[400620003,1767747184045,167.53,8.066e-05,2]
[400620004,1767747184474,223.37,8.417e-05,2]
[400620005,1767747184883,279.21,8.768e-05,2]
[400620006,1767747185308,335.05,9.118e-05,2]
[400620007,1767747188507,-390.89,9.469e-05,2]
[400620008,1767747188544,-446.74,9.82e-05,2]
[400620009,1767747188576,-502.58,0.00010171,2]
[400620010,1767747188605,-558.42,0.00010521,2]
[400620011,1767747188632,-1581.55873187,0.00012443,2]
[400620012,1767747188660,-300.0,0.00012568,2]
[400620013,1767747188693,-400.4819955,0.00012569,2]
[400620014,1767747188722,-500.0,0.00012569,2]
[400620015,1767747188754,-138.66854526,0.00012569,2]
[400620016,1767747204450,-361.33145474,0.00012569,2]
[400620017,1767747204632,-500.0,0.00012569,2]
[400620018,1767747204660,-500.0,0.00012569,2]
[400620019,1767747204688,-500.0,0.00012569,2]
[400620020,1767747204716,-500.0,0.00012569,2]
[400620021,1767747204746,-500.0,0.00012569,2]
[400620022,1767747204774,-500.0,0.00012569,2]
[400620023,1767747204801,-500.0,0.00012569,2]
[400620024,1767747204830,-500.0,0.00012569,2]
[400620025,1767747204858,-500.0,0.00012569,2]
[400620026,1767747204930,-301.10845288,0.00012569,2]
[400620027,1767747204960,-500.0,0.00012569,2]
[400620028,1767747204988,-500.0,0.00012569,2]
[400620029,1767747205016,-500.0,0.00012569,2]
[400620030,1767747205044,-500.0,0.00012569,2]
[400620031,1767747205073,-500.0,0.00012569,2]
[400620032,1767747205102,-235.27416304,0.00012569,2]
[400620033,1767747205132,-500.0,0.00012569,2]
[400620034,1767747205165,-500.0,0.00012569,2]
[400620035,1767747205194,-500.0,0.00012569,2]
[400620036,1767747205224,-427.24476816,0.00012569,2]
[400620037,1767747205333,-72.75523184,0.00012569,2]
[400620038,1767747205361,-500.0,0.00012569,2]
[400620039,1767747205390,-379.26356499,0.00012569,2]
[400620040,1767747205420,-500.0,0.00012569,2]
[400620041,1767747205448,-367.59900911,0.00012569,2]
[400620042,1767747205476,-500.0,0.00012569,2]
[400620043,1767747205506,-500.0,0.00012569,2]
[400620044,1767747205536,-500.0,0.00012569,2]
[400620045,1767747205571,-500.0,0.00012569,2]
[400620046,1767747205600,-500.0,0.00012569,2]
[400620047,1767747205627,-500.0,0.00012569,2]
[400620048,1767747205794,-500.0,0.00012569,2]
[400620049,1767747205822,-500.0,0.00012569,2]
[400620050,1767747205849,-500.0,0.00012569,2]
[400620051,1767747205877,-500.0,0.00012569,2]
[400620052,1767747205905,-500.0,0.00012569,2]
[400620053,1767747205933,-500.0,0.00012569,2]
[400620054,1767747205961,-500.0,0.00012569,2]
[400620055,1767747205987,-500.0,0.00012569,2]
[400620056,1767747206015,-500.0,0.00012569,2]
[400620057,1767747206044,-500.0,0.00012569,2]
[400620058,1767747206264,-500.0,0.00012569,2]
[400620059,1767747206292,-500.0,0.00012569,2]
[400620060,1767747206319,-500.0,0.00012569,2]
[400620061,1767747206347,-314.14949569,0.00012569,2]
[400620062,1767747206375,-500.0,0.00012569,2]
[400620063,1767747206403,-500.0,0.00012569,2]
[400620064,1767747206432,-500.0,0.00012569,2]
[400620065,1767747206460,-500.0,0.00012569,2]
[400620066,1767747206488,-500.0,0.00012569,2]
[400620067,1767747206516,-500.0,0.00012569,2]
[400620068,1767747224370,-500.0,0.00012569,2]
[400620069,1767747224403,-500.0,0.00012569,2]
[400620070,1767747224437,-500.0,0.00012569,2]
[400620071,1767747224472,-500.0,0.00012569,2]
[400620072,1767747224507,-500.0,0.00012569,2]
[400620073,1767747224538,-500.0,0.00012569,2]
[400620075,1767747258716,151.08,0.00010408,2]
[400620076,1767747259147,169.96,0.00010779,2]
[400620077,1767747321820,299.7701382,0.00012569,2]
[400620079,1767747362331,-300.0,0.00012819,2]
[400620080,1767747362376,-429.73322323,0.00012819,2]
[400620081,1767747362426,-499.60570717,0.00012819,2]
[400620082,1767747362461,-534.90549952,0.00012819,2]
[400620083,1767747362497,-300.0,0.0001282,2]
[400620084,1767747362530,-300.0,0.0001282,2]
[400620085,1767747362563,-300.0,0.0001282,2]
[400620086,1767747362596,-300.0,0.0001282,2]
[400620087,1767747362629,-300.0,0.0001282,2]
[400620088,1767747362659,-300.0,0.0001282,2]
[400620089,1767747362693,-300.0,0.0001282,2]
[400620090,1767747362735,-300.0,0.0001282,2]
[400620091,1767747362766,-300.0,0.0001282,2]
[400620092,1767747362795,-300.0,0.0001282,2]
[400620093,1767747362825,-171.52114016,0.0001282,2]
[400620094,1767747384187,-300.0,0.00012819,2]
[400620095,1767747384219,-128.47885984,0.0001282,2]
[400620096,1767747384250,-300.0,0.0001282,2]
[400620097,1767747384282,-300.0,0.0001282,2]
[400620098,1767747384311,-300.0,0.0001282,2]
[400620099,1767747384340,-300.0,0.0001282,2]
[400620100,1767747384370,-600.0,0.0001282,2]
[400620101,1767747405390,-6600.25252654,0.0001272,2]
[400620102,1767747714873,-184.7045463,0.00012466,2]
[400620103,1767747714901,-281.538,0.00012466,2]
[400620105,1767747774046,561.72,0.00030137,120]
[400620106,1767747815540,3391.4962741,0.00011714,2]
[400620107,1767747863470,2000.0,0.00030137,120]
[400620108,1767747891093,-156.32,9.914e-05,2]
[400620109,1767747891124,-175.86,0.00010268,2]
[400620110,1767747891155,-153.14098452,0.00010622,2]
[400620111,1767747893162,173.61198333,0.00010091,2]
[400620112,1767747894189,204.86214032,0.00012091,2]
[400620119,1767748193498,155.0,5.98e-05,2]
[400620138,1767748231520,-235.0,0.00012671,2]
[400620139,1767748231529,-599.0,0.00012671,2]
[400620140,1767748231539,-166.04250085,0.00012672,2]
[400620141,1767748231548,-252.6293713,0.00012672,2]
[400620142,1767748231557,-409.45331424,0.00012672,2]
[400620143,1767748231578,-4466.27836496,0.00012672,2]
[400620145,1767748231588,-500.0,0.00012699,2]
[400620146,1767748231597,-581.69712923,0.00012699,2]
[400620147,1767748231607,-500.0,0.00012699,2]
[400620148,1767748231616,-500.0,0.00012699,2]
[400620149,1767748231625,-404.24281571,0.00012699,2]
[400620150,1767748231634,-151.0,0.000127,2]
[400620151,1767748231643,-151.0,0.000127,2]
[400620152,1767748231653,-151.0,0.000127,2]
[400620153,1767748231662,-151.0,0.000127,2]
[400620154,1767748231672,-151.0,0.000127,2]
[400620155,1767748231682,-151.0,0.000127,2]
[400620157,1767748231691,-151.0,0.000127,2]
[400620159,1767748231700,-151.0,0.000127,2]
[400620161,1767748231710,-151.0,0.000127,2]